fUSD/lending_fUSD_20251225
["ID","MTS","AMOUNT","RATE_DAILY","PERIOD"]
[399697354,1766625081001,-1081.61238017,0.00038525,2]
[399697355,1766625081010,-303.97687864,0.00038525,2]
[399697356,1766625081020,-300.0,0.00038525,2]
[399697357,1766625081029,-313.64976517,0.00038525,2]
[399697358,1766625081039,-367.60806407,0.00038525,2]
[399697359,1766625081048,-303.19416088,0.00038525,2]
[399697360,1766625081057,-594.69391449,0.00038525,2]
[399697361,1766625081066,-363.75121535,0.00038525,2]
[399697362,1766625081076,-300.0,0.00038525,2]
[399697363,1766625081085,-303.98630211,0.00038525,2]
[399697364,1766625081095,-300.0,0.00038525,2]
[399697365,1766625081104,-302.80443321,0.00038525,2]
[399697366,1766625081113,-576.88661357,0.00038525,2]
[399697367,1766625081122,-1081.61238017,0.00038525,2]
[399697368,1766625081131,-303.97687864,0.00038525,2]
[399697369,1766625081140,-300.0,0.00038525,2]
[399697370,1766625081150,-367.60806407,0.00038525,2]
[399697371,1766625081159,-303.19416088,0.00038525,2]
[399697372,1766625081168,-594.69391449,0.00038525,2]
[399697373,1766625081178,-363.75121535,0.00038525,2]
[399697374,1766625081187,-300.0,0.00038525,2]
[399697375,1766625081197,-300.0,0.00038525,2]
[399697376,1766625081207,-302.80443321,0.00038525,2]
[399697377,1766625081216,-576.88661357,0.00038525,2]
[399697378,1766625081226,-1081.61238017,0.00038525,2]
[399697379,1766625081235,-303.97687864,0.00038525,2]
[399697380,1766625081244,-367.11459648,0.00038525,2]
[399697381,1766625081253,-367.60806407,0.00038525,2]
[399697382,1766625081263,-303.19416088,0.00038525,2]
[399697383,1766625081272,-594.69391449,0.00038525,2]
[399697384,1766625081281,-363.75121535,0.00038525,2]
[399697385,1766625081291,-300.0,0.00038525,2]
[399697386,1766625081300,-449.3652821,0.00038525,2]
[399697387,1766625081309,-302.80443321,0.00038525,2]
[399697388,1766625081319,-576.88661357,0.00038525,2]
[399697389,1766625081328,-1081.61238017,0.00038525,2]
[399697390,1766625081337,-303.97687864,0.00038525,2]
[399697391,1766625081346,-367.60806407,0.00038525,2]
[399697392,1766625081355,-303.19416088,0.00038525,2]
[399697393,1766625081365,-594.69391449,0.00038525,2]
[399697394,1766625081375,-363.75121535,0.00038525,2]
[399697395,1766625081384,-300.0,0.00038525,2]
[399697396,1766625081394,-302.80443321,0.00038525,2]
[399697397,1766625081403,-576.88661357,0.00038525,2]
[399697398,1766625081412,-1081.61238017,0.00038525,2]
[399697399,1766625081421,-303.97687864,0.00038525,2]
[399697400,1766625081430,-367.60806407,0.00038525,2]
[399697401,1766625081440,-303.19416088,0.00038525,2]
[399697402,1766625081450,-594.69391449,0.00038525,2]
[399697403,1766625081459,-363.75121535,0.00038525,2]
[399697404,1766625081469,-300.0,0.00038525,2]
[399697405,1766625081479,-302.80443321,0.00038525,2]
[399697406,1766625081488,-576.88661357,0.00038525,2]
[399697407,1766625081498,-1081.61238017,0.00038525,2]
[399697408,1766625081508,-303.97687864,0.00038525,2]
[399697409,1766625081517,-367.60806407,0.00038525,2]
[399697410,1766625081527,-303.19416088,0.00038525,2]
[399697411,1766625081536,-594.69391449,0.00038525,2]
[399697412,1766625081546,-363.75121535,0.00038525,2]
[399697413,1766625081555,-300.0,0.00038525,2]
[399697414,1766625081564,-302.80443321,0.00038525,2]
[399697415,1766625081574,-576.88661357,0.00038525,2]
[399697416,1766625081584,-1081.61238017,0.00038525,2]
[399697417,1766625081593,-303.97687864,0.00038525,2]
[399697418,1766625081602,-367.60806407,0.00038525,2]
[399697419,1766625081611,-303.19416088,0.00038525,2]
[399697420,1766625081621,-594.69391449,0.00038525,2]
[399697421,1766625081631,-363.75121535,0.00038525,2]
[399697422,1766625081640,-300.0,0.00038525,2]
[399697423,1766625081649,-302.80443321,0.00038525,2]
[399697424,1766625081659,-576.88661357,0.00038525,2]
[399697425,1766625081668,-1081.61238017,0.00038525,2]
[399697426,1766625081678,-303.97687864,0.00038525,2]
[399697427,1766625081688,-367.60806407,0.00038525,2]
[399697428,1766625081698,-303.19416088,0.00038525,2]
[399697429,1766625081707,-594.69391449,0.00038525,2]
[399697430,1766625081717,-363.75121535,0.00038525,2]
[399697431,1766625081730,-300.0,0.00038525,2]
[399697432,1766625081739,-302.80443321,0.00038525,2]
[399697433,1766625081751,-576.88661357,0.00038525,2]
[399697434,1766625081760,-671.36563388,0.00038547,14]
[399697435,1766625081771,-151.0,0.00038569,120]
[399697436,1766625081780,-151.0,0.00038569,60]
[399697437,1766625081790,-151.0,0.00038569,60]
[399697438,1766625081802,-151.0,0.00038569,60]
[399697439,1766625081811,-277.111297,0.00038569,120]
[399697440,1766625081820,-151.0,0.00038569,120]
[399697441,1766625081830,-151.0,0.00038569,120]
[399697442,1766625081839,-150.0,0.0003861,30]
[399697443,1766625081849,-150.0,0.0003861,30]
[399697444,1766625081859,-162.0,0.00038644,11]
[399697445,1766625081869,-183.0,0.00038663,90]
[399697446,1766625081878,-338.0,0.00038663,90]
[399697447,1766625081888,-451781.95266665,0.00038666,2]
[399697448,1766625081898,-4000.0,0.00038666,31]
[399697449,1766625081907,-162.0,0.0003868,11]
[399697450,1766625081917,-162.0,0.0003868,11]
[399697451,1766625081927,-162.0,0.0003868,11]
[399697452,1766625081936,-162.0,0.0003868,11]
[399697453,1766625081945,-530.88532,0.00038688,30]
[399697454,1766625081955,-1500.0,0.00038699,7]
[399697455,1766625081964,-1500.0,0.00038699,7]
[399697456,1766625081973,-1500.0,0.00038699,7]
[399697457,1766625081982,-1500.0,0.00038699,7]
[399697458,1766625081991,-1500.0,0.00038699,7]
[399697459,1766625082001,-1500.0,0.00038699,7]
[399697460,1766625082011,-1500.0,0.00038699,7]
[399697461,1766625082021,-1500.0,0.00038699,7]
[399697462,1766625082030,-1500.0,0.00038699,7]
[399697463,1766625082039,-1500.0,0.00038699,7]
[399697464,1766625082048,-1500.0,0.00038699,7]
[399697465,1766625082058,-1995.0882,0.000387,30]
[399697466,1766625082067,-1832.49,0.00038767,30]
[399697467,1766625082076,-1832.49,0.00038767,30]
[399697468,1766625082085,-1832.49,0.00038767,30]
[399697469,1766625082094,-1832.49,0.00038767,30]
[399697470,1766625082104,-500.0,0.00038794,33]
[399697471,1766625082114,-500.0,0.00038794,33]
[399697472,1766625082124,-800.07,0.00038794,33]
[399697473,1766625082133,-165.3,0.000388,27]
[399697474,1766625082143,-165.3,0.000388,27]
[399697475,1766625082152,-165.3,0.000388,27]
[399697476,1766625082161,-10259.4762391,0.000388,2]
[399697477,1766625082170,-152.0,0.00038857,15]
[399697478,1766625082180,-15039.31913854,0.00038874,2]
[399697479,1766625082189,-531.00171743,0.000389,120]
[399697480,1766625082198,-12441.92793459,0.000389,120]
[399697481,1766625082207,-352.43363352,0.000389,2]
[399697482,1766625082217,-819.57735028,0.000389,2]
[399697483,1766625082226,-1972.94525316,0.000389,2]
[399697484,1766625082235,-579.11026946,0.000389,2]
[399697485,1766625082244,-160.19320816,0.000389,2]
[399697486,1766625082253,-12188.8,0.00038904,2]
[399697487,1766625082262,-209.0,0.0003891,30]
[399697488,1766625082272,-671.36563388,0.00038911,14]
[399697489,1766625082282,-160.0,0.00038964,11]
[399697490,1766625082292,-151.0,0.00038988,120]
[399697491,1766625082301,-208.678345,0.00038988,120]
[399697492,1766625082310,-208.678345,0.00038988,120]
[399697493,1766625082320,-151.0,0.00038988,120]
[399697494,1766625082329,-151.0,0.00038988,120]
[399697495,1766625082338,-151.0,0.00038988,120]
[399697496,1766625082347,-151.0,0.00038988,120]
[399697497,1766625082357,-208.678345,0.00038988,120]
[399697498,1766625082366,-151.0,0.00038988,120]
[399697499,1766625082375,-208.678345,0.00038988,120]
[399697500,1766625082384,-151.0,0.00038988,120]
[399697501,1766625082394,-151.0,0.00038988,120]
[399697502,1766625082403,-151.0,0.00038988,120]
[399697503,1766625082412,-151.0,0.00038988,120]
[399697504,1766625082422,-164.511049,0.00038988,120]
[399697505,1766625082431,-151.0,0.00038988,120]
[399697506,1766625082440,-151.0,0.00038988,120]
[399697507,1766625082449,-164.511049,0.00038988,120]
[399697508,1766625082459,-151.0,0.00038988,120]
[399697509,1766625082468,-164.511049,0.00038988,120]
[399697510,1766625082477,-151.0,0.00038988,60]
[399697511,1766625082487,-151.0,0.00038988,120]
[399697512,1766625082496,-164.511049,0.00038988,120]
[399697513,1766625082505,-151.0,0.00038988,120]
[399697514,1766625082514,-254.167854,0.00038988,120]
[399697515,1766625082524,-151.0,0.00038988,120]
[399697516,1766625082533,-254.167854,0.00038988,120]
[399697517,1766625082542,-151.0,0.00038988,120]
[399697518,1766625082551,-254.167854,0.00038988,120]
[399697519,1766625082560,-151.0,0.00038988,120]
[399697520,1766625082569,-254.167854,0.00038988,120]
[399697521,1766625082579,-193.117345,0.00038988,120]
[399697522,1766625082588,-268.909125,0.00038988,120]
[399697523,1766625082597,-268.909125,0.00038988,120]
[399697524,1766625082608,-268.909125,0.00038988,120]
[399697525,1766625082617,-268.909125,0.00038988,120]
[399697526,1766625082626,-445.202766,0.00038988,54]
[399697527,1766625082635,-250.0,0.00038988,54]
[399697528,1766625082645,-250.0,0.00038988,54]
[399697529,1766625082654,-500.0,0.00038988,54]
[399697530,1766625082663,-500.0,0.00038988,54]
[399697531,1766625082672,-151.0,0.00038988,54]
[399697532,1766625082682,-559.19188,0.00038988,54]
[399697533,1766625082691,-250.0,0.00038988,54]
[399697534,1766625082701,-162.380719,0.00038988,54]
[399697535,1766625082710,-500.0,0.00038988,54]
[399697536,1766625082720,-162.380719,0.00038988,54]
[399697537,1766625082733,-500.0,0.00038988,54]
[399697538,1766625082742,-500.0,0.00038988,54]
[399697539,1766625082752,-500.0,0.00038988,54]
[399697540,1766625082763,-250.0,0.00038988,54]
[399697541,1766625082773,-160.0,0.00038988,54]
[399697542,1766625082783,-500.0,0.00038988,54]
[399697543,1766625082793,-151.0,0.00038988,54]
[399697544,1766625082804,-250.0,0.00038988,54]
[399697545,1766625082813,-151.0,0.00038988,54]
[399697546,1766625082823,-151.0,0.00038988,54]
[399697547,1766625082832,-250.0,0.00038988,54]
[399697548,1766625082841,-537.6845,0.00038988,54]
[399697549,1766625082851,-500.0,0.00038988,54]
[399697550,1766625082860,-220.0,0.00038988,54]
[399697551,1766625082870,-151.0,0.00038997,14]
[399697552,1766625082879,-3000.0,0.00038998,120]
[399697553,1766625082889,-429.318,0.00038998,30]
[399697554,1766625082898,-311.1,0.00038998,30]
[399697555,1766625082908,-250.0,0.00038998,30]
[399697556,1766625082917,-250.0,0.00038998,30]
[399697557,1766625082926,-500.0,0.00038998,30]
[399697558,1766625082936,-500.0,0.00038998,30]
[399697559,1766625082945,-151.0,0.00038998,30]
[399697560,1766625082955,-539.24,0.00038998,30]
[399697561,1766625082964,-250.0,0.00038998,30]
[399697562,1766625082973,-156.587,0.00038998,30]
[399697563,1766625082983,-500.0,0.00038998,30]
[399697564,1766625082992,-156.587,0.00038998,30]
[399697565,1766625083002,-500.0,0.00038998,30]
[399697566,1766625083012,-500.0,0.00038998,30]
[399697567,1766625083021,-500.0,0.00038998,30]
[399697568,1766625083031,-250.0,0.00038998,30]
[399697569,1766625083041,-160.0,0.00038998,30]
[399697570,1766625083051,-500.0,0.00038998,30]
[399697571,1766625083061,-151.0,0.00038998,30]
[399697572,1766625083070,-151.0,0.00038998,30]
[399697573,1766625083081,-250.0,0.00038998,30]
[399697574,1766625083091,-151.0,0.00038998,30]
[399697575,1766625083101,-151.0,0.00038998,30]
[399697576,1766625083110,-250.0,0.00038998,30]
[399697577,1766625083120,-518.5,0.00038998,30]
[399697578,1766625083129,-500.0,0.00038998,30]
[399697579,1766625083139,-220.0,0.00038998,30]
[399697580,1766625083149,-270.77183241,0.00038999,120]
[399697581,1766625083159,-300.0,0.00038999,10]
[399697582,1766625083168,-414.0,0.00038999,31]
[399697583,1766625083178,-300.0,0.00038999,31]
[399697584,1766625083188,-543.0,0.00038999,31]
[399697585,1766625083198,-250.0,0.00038999,31]
[399697586,1766625083208,-500.0,0.00038999,31]
[399697587,1766625083218,-250.0,0.00038999,31]
[399697588,1766625083227,-151.0,0.00038999,31]
[399697589,1766625083237,-500.0,0.00038999,31]
[399697590,1766625083247,-520.0,0.00038999,31]
[399697591,1766625083257,-250.0,0.00038999,31]
[399697592,1766625083267,-543.0,0.00038999,31]
[399697593,1766625083277,-543.0,0.00038999,31]
[399697594,1766625083287,-543.0,0.00038999,31]
[399697595,1766625083297,-543.0,0.00038999,31]
[399697596,1766625083308,-543.0,0.00038999,31]
[399697597,1766625083319,-543.0,0.00038999,31]
[399697598,1766625083329,-543.0,0.00038999,31]
[399697599,1766625083339,-543.0,0.00038999,31]
[399697600,1766625083349,-543.0,0.00038999,31]
[399697601,1766625083359,-543.0,0.00038999,31]
[399697602,1766625083370,-543.0,0.00038999,31]
[399697603,1766625083380,-543.0,0.00038999,31]
[399697604,1766625083390,-886.84165899,0.00038999,31]
[399697605,1766625083400,-543.0,0.00038999,31]
[399697606,1766625083409,-151.0,0.00038999,31]
[399697607,1766625083420,-500.0,0.00038999,31]
[399697608,1766625083428,-151.0,0.00038999,31]
[399697609,1766625083438,-543.0,0.00038999,31]
[399697610,1766625083447,-500.0,0.00038999,31]
[399697611,1766625083457,-500.0,0.00038999,31]
[399697612,1766625083467,-500.0,0.00038999,31]
[399697613,1766625083478,-220.37931501,0.00038999,31]
[399697614,1766625083488,-250.0,0.00038999,31]
[399697615,1766625083498,-160.0,0.00038999,31]
[399697616,1766625083508,-600.0,0.00038999,31]
[399697617,1766625083517,-600.0,0.00038999,31]
[399697618,1766625083527,-600.0,0.00038999,31]
[399697619,1766625083536,-600.0,0.00038999,31]
[399697620,1766625083546,-500.0,0.00038999,31]
[399697621,1766625083555,-600.0,0.00038999,31]
[399697622,1766625083565,-600.0,0.00038999,31]
[399697623,1766625083575,-600.0,0.00038999,31]
[399697624,1766625083584,-200.0,0.00038999,31]
[399697625,1766625083594,-600.0,0.00038999,31]
[399697626,1766625083604,-600.0,0.00038999,31]
[399697627,1766625083614,-151.0,0.00038999,31]
[399697628,1766625083623,-600.0,0.00038999,31]
[399697629,1766625083632,-600.0,0.00038999,31]
[399697630,1766625083642,-600.0,0.00038999,31]
[399697631,1766625083651,-600.0,0.00038999,31]
[399697632,1766625083661,-250.0,0.00038999,31]
[399697633,1766625083670,-600.0,0.00038999,31]
[399697634,1766625083680,-250.0,0.00038999,31]
[399697635,1766625083690,-600.0,0.00038999,31]
[399697636,1766625083701,-250.0,0.00038999,31]
[399697637,1766625083711,-151.0,0.00038999,31]
[399697638,1766625083721,-250.0,0.00038999,31]
[399697639,1766625083735,-250.0,0.00038999,31]
[399697640,1766625083746,-250.0,0.00038999,31]
[399697641,1766625083756,-250.0,0.00038999,31]
[399697642,1766625083768,-250.0,0.00038999,31]
[399697643,1766625083777,-250.0,0.00038999,31]
[399697644,1766625083787,-151.0,0.00038999,31]
[399697645,1766625083797,-250.0,0.00038999,31]
[399697646,1766625083807,-151.0,0.00038999,31]
[399697647,1766625083819,-251.17577877,0.00038999,31]
[399697648,1766625083830,-250.0,0.00038999,31]
[399697649,1766625083840,-500.0,0.00038999,31]
[399697650,1766625083850,-1500.0,0.00038999,31]
[399697651,1766625083861,-500.0,0.00038999,31]
[399697652,1766625083871,-220.0,0.00038999,31]
[399697653,1766625083882,-2131.03736397,0.00039,31]
[399697654,1766625083892,-11876515.83111484,0.00039,2]
[399697655,1766625084384,-597.032921,0.00033569,31]
[399697656,1766625084394,-355.967079,0.00039,2]
[399697657,1766625084499,-7182.87468006,0.00039,2]
[399697658,1766625084512,-1774.97084956,0.00039,2]
[399697659,1766625084523,-1729.9999,0.00039,2]
[399697660,1766625084534,-365.60756904,0.00039,2]
[399697661,1766625084550,-5381.08095703,0.00039,2]
[399697662,1766625085163,-854.35851119,0.00012623,2]
[399697663,1766625085175,-854.35851119,0.00012623,2]
[399697664,1766625085186,-201.11996521,0.00013912,2]
[399697665,1766625085196,-255.943277,0.00033569,31]
[399697666,1766625085207,-151.0,0.00033569,31]
[399697667,1766625085217,-597.032921,0.00033569,31]
[399697668,1766625085228,-151.0,0.00033569,31]
[399697669,1766625085238,-255.943277,0.00033569,31]
[399697670,1766625085250,-150.0,0.000336,7]
[399697671,1766625085260,-150.0,0.000338,7]
[399697672,1766625085270,-151.0,0.000359,31]
[399697673,1766625085280,-299.11326921,0.000359,31]
[399697674,1766625085299,-297.91965179,0.000359,31]
[399697675,1766625085310,-255.943277,0.000359,31]
[399697676,1766625085320,-80.57575059,0.000359,31]
[399697677,1766625085332,-70.42424941,0.000359,31]
[399697678,1766625085342,-597.032921,0.000359,31]
[399697679,1766625085352,-151.0,0.000359,31]
[399697680,1766625085362,-255.943277,0.000359,31]
[399697681,1766625085372,-81792.52057523,0.00039,2]
[399697682,1766625085384,-915.01950808,0.00039,2]
[399697683,1766625085396,-719.38218301,0.00039,2]
[399697684,1766625085409,-1425.78080434,0.00039,2]
[399697685,1766625085421,-3678.94705538,0.00039,2]
[399697686,1766625085433,-1351.69817124,0.00039,2]
[399697687,1766625085445,-1608.88047643,0.00039,2]
[399697688,1766625085475,-1505.9945437,0.00039,2]
[399697689,1766625086257,-250.0,0.00017265,2]
[399697690,1766625086272,-52.0,0.00025488,2]
[399697691,1766625086285,-448.0,0.00025488,2]
[399697692,1766625086294,-278.084455,0.00033569,31]
[399697693,1766625086306,-318.948466,0.00033569,31]
[399697694,1766625086317,-151.0,0.00033569,31]
[399697695,1766625086327,-151.0,0.00033569,31]
[399697696,1766625086337,-170.76,0.00035397,2]
[399697697,1766625086347,-554.17,0.00035484,2]
[399697698,1766625086357,-597.032921,0.000359,31]
[399697699,1766625086367,-151.0,0.000359,31]
[399697700,1766625086377,-151.0,0.000359,31]
[399697701,1766625086387,-197.60503878,0.000372,120]
[399697702,1766625086396,-2465.98791028,0.00039,2]
[399697703,1766625086408,-357.449822,0.00039,2]
[399697704,1766625086420,-1125.22801669,0.00039,2]
[399697705,1766625086432,-296.33,0.00039,2]
[399697706,1766625086456,-83355.86221884,0.00039,2]
[399697707,1766625086476,-500.0,0.00025489,2]
[399697708,1766625086488,-376857.02097439,0.00039,2]
[399697709,1766625086517,-500.0,0.0002549,2]
[399697710,1766625086528,-1383.27591044,0.00039,2]
[399697711,1766625086542,-412.55873519,0.00039,2]
[399697712,1766625086554,-621.16541866,0.00039,2]
[399697713,1766625086566,-453.0,0.00039,2]
[399697714,1766625086579,-268.40008286,0.00039,2]
[399697715,1766625086593,-11513.009257,0.00039,2]
[399697716,1766625086713,-2433.92932378,0.00039,2]
[399697717,1766625086731,-3300.0,0.00039,2]
[399697718,1766625086746,-45391.10593899,0.00039,2]
[399697719,1766625086802,-42020.51237149,0.00039,2]
[399697720,1766625086819,-101418.24556663,0.00039,2]
[399697721,1766625086836,-239223.64644354,0.00039,2]
[399697722,1766625086854,-133047.523553,0.00039,2]
[399697723,1766625086871,-179403.71216514,0.00039,2]
[399697724,1766625086889,-115971.09407352,0.00039,2]
[399697725,1766625212958,264.0,0.000125,2]
[399697726,1766625592711,9736.01,0.00012598,2]
[399697727,1766625592735,9050.6,0.00012598,2]
[399697728,1766625604789,-253.0,0.00012616,2]
[399697729,1766625604813,-2500.0,0.00012616,2]
[399697730,1766625604837,-300.0,0.00012618,2]
[399697731,1766625604861,-639.54708041,0.00012618,2]
[399697732,1766625794704,150.0,0.00012247,2]
[399697733,1766625801951,208.34,0.00012247,2]
[399697734,1766625812910,162.5345,0.00012518,2]
[399697735,1766625895152,3240.0,0.00012192,2]
[399697736,1766625923157,215.15,0.00012136,2]
[399697737,1766625960685,2350.23441356,8e-05,2]
[399697738,1766626030480,205.0,9.8e-05,2]
[399697739,1766626034711,259.09576182,0.000101,2]
[399697740,1766626071188,5929.70289096,0.00012,2]
[399697743,1766626091186,500.0,0.00012515,2]
[399697744,1766626097229,540.82693366,0.0001,2]
[399697745,1766626097254,1385.14697259,0.0001,2]
[399697746,1766626099255,390.37563915,7.888e-05,2]
[399697747,1766626109079,2727.54085448,0.0001,2]
[399697748,1766626111802,267.47871705,0.000107,2]
[399697749,1766626113252,5229.46781673,0.00012516,2]
[399697750,1766626113284,10000.01,0.00012516,2]
[399697751,1766626113310,10000.01,0.00012516,2]
[399697752,1766626113336,10000.01,0.00012516,2]
[399697753,1766626113361,10000.01,0.00012516,2]
[399697754,1766626113386,10000.01,0.00012516,2]
[399697755,1766626113411,10000.01,0.00012516,2]
[399697756,1766626113436,10000.01,0.00012516,2]
[399697757,1766626113462,10000.01,0.00012516,2]
[399697758,1766626113488,10000.01,0.00012516,2]
[399697759,1766626118698,4671.3156102,0.0001,2]
[399697760,1766626118722,4671.3156102,0.0001,2]
[399697761,1766626118745,4669.08634571,0.0001,2]
[399697762,1766626121479,-5609.05764501,0.00012516,2]
[399697763,1766626121566,-10000.01,0.00012516,2]
[399697764,1766626121891,-10000.01,0.00012516,2]
[399697765,1766626121983,-10000.01,0.00012516,2]
[399697766,1766626122095,-10000.01,0.00012516,2]
[399697767,1766626122209,-10000.01,0.00012516,2]
[399697768,1766626122304,-10000.01,0.00012516,2]
[399697769,1766626142310,-1297.01324201,0.00012514,2]
[399697770,1766626142340,-300.0,0.00012515,2]
[399697771,1766626142413,-6805.98351598,0.00012516,2]
[399697772,1766626142438,-10000.01,0.00012516,2]
[399697773,1766626142523,-10000.01,0.00012516,2]
[399697774,1766626142595,-10000.01,0.00012516,2]
[399697775,1766626142716,-10000.01,0.00012516,2]
[399697776,1766626142859,-10000.01,0.00012516,2]
[399697777,1766626145343,-10000.01,0.00012516,2]
[399697789,1766626231870,-254.45,0.00012515,2]
[399697790,1766626231882,-386.77400294,0.00012515,2]
[399697791,1766626231893,-558.77599706,0.00012515,2]
[399697792,1766626231903,-300.0,0.00012515,2]
[399697793,1766626231913,-300.0,0.00012515,2]
[399697794,1766626231923,-150.0,0.00012515,2]
[399697795,1766626231933,-300.0,0.00012515,2]
[399697796,1766626231943,-253.0,0.00012515,2]
[399697797,1766626231952,-903.68301627,0.00012516,2]
[399697798,1766626231962,-199562.54225548,0.00012516,2]
[399697799,1766626231973,-3171.23887021,0.00012516,2]
[399697800,1766626232010,-1135.57030507,0.00012516,2]
[399697801,1766626232023,-2940.91019309,0.00012516,2]
[399697803,1766626234006,1647.43,0.00012,2]
[399697804,1766626238115,-500.0,0.00012515,2]
[399697805,1766626238125,-324.63577863,0.00012515,2]
[399697806,1766626238135,-500.0,0.00012515,2]
[399697807,1766626238146,-247.54624366,0.00012515,2]
[399697808,1766626238155,-598.43377277,0.00012515,2]
[399697809,1766626238165,-500.0,0.00012515,2]
[399697810,1766626238175,-500.0,0.00012515,2]
[399697811,1766626238184,-500.0,0.00012515,2]
[399697813,1766626238194,-272.35221999,0.00012515,2]
[399697815,1766626238204,-189.66162235,0.00012515,2]
[399697817,1766626238214,-500.0,0.00012515,2]
[399697819,1766626238224,-500.0,0.00012515,2]
[399697820,1766626238236,-500.0,0.00012515,2]
[399697822,1766626238245,-500.0,0.00012515,2]
[399697824,1766626238254,-500.0,0.00012515,2]
[399697826,1766626238264,-361.13717931,0.00012515,2]
[399697828,1766626238275,-500.0,0.00012515,2]
[399697830,1766626238284,-500.0,0.00012515,2]
[399697832,1766626238295,-500.0,0.00012515,2]
[399697834,1766626238305,-500.0,0.00012515,2]
[399697836,1766626238314,-243.74555789,0.00012515,2]
[399697838,1766626238325,-500.0,0.00012515,2]
[399697840,1766626238334,-500.0,0.00012515,2]
[399697842,1766626238344,-500.0,0.00012515,2]
[399697844,1766626238353,-500.0,0.00012515,2]
[399697846,1766626238362,-500.0,0.00012515,2]
[399697848,1766626238371,-500.0,0.00012515,2]
[399697849,1766626238382,-500.0,0.00012515,2]
[399697851,1766626238391,-500.0,0.00012515,2]
[399697853,1766626238402,-500.0,0.00012515,2]
[399697855,1766626238411,-500.0,0.00012515,2]
[399697857,1766626238422,-500.0,0.00012515,2]
[399697859,1766626238432,-500.0,0.00012515,2]
[399697861,1766626238441,-500.0,0.00012515,2]
[399697863,1766626238451,-500.0,0.00012515,2]
[399697865,1766626238461,-500.0,0.00012515,2]
[399697867,1766626238471,-500.0,0.00012515,2]
[399697869,1766626238481,-500.0,0.00012515,2]
[399697877,1766626238491,-500.0,0.00012515,2]
[399697878,1766626238783,-500.0,0.00012515,2]
[399697879,1766626238795,-565545.01939843,0.00012516,2]
[399697880,1766626238805,-300.0,0.00012565,2]
[399697881,1766626238815,-300.0,0.00012614,2]
[399697882,1766626238824,-250.0,0.00012615,2]
[399697883,1766626238834,-380.2395,0.00012615,2]
[399697884,1766626238846,-1200.0,0.00012615,2]
[399697885,1766626238856,-250.0,0.00012615,2]
[399697886,1766626238866,-2350.0362,0.00012615,2]
[399697887,1766626238876,-83771.7212,0.00012615,2]
[399697888,1766626238886,-236.0434,0.00012615,2]
[399697889,1766626238896,-218.0431,0.00012616,2]
[399697890,1766626238906,-3890.314,0.00012618,2]
[399697891,1766626238915,-326.459,0.00012618,2]
[399697892,1766626238925,-419.69716077,0.00012619,2]
[399697893,1766626238935,-32787.05688097,0.00012624,2]
[399697894,1766626238945,-295.28,0.00012653,2]
[399697895,1766626238955,-157.87,0.000127,2]
[399697896,1766626238965,-151.0,0.00012709,2]
[399697897,1766626238975,-151.0,0.00012709,2]
[399697898,1766626238984,-151.0,0.00012709,2]
[399697899,1766626238998,-151.0,0.00012709,2]
[399697900,1766626239009,-151.0,0.00012709,2]
[399697901,1766626239019,-151.0,0.00012709,2]
[399697902,1766626239029,-151.0,0.00012709,2]